[Event "UZB-ch Men Final 2019"]
[Site "Tashkent"]
[Date "2019.07.02"]
[Round "1.1"]
[White "Iuldachev, Saidali"]
[Black "Saydaliev, Saidakbar"]
[Result "1-0"]
[ECO "B90"]
[WhiteElo "2451"]
[BlackElo "2384"]
[Annotator "ChessBase"]
[PlyCount "69"]
[EventDate "2019.07.02"]
[EventType "tourn"]
[EventCountry "UZB"]
[SourceTitle "playchess.com"]
[Source "ChessBase"]
[SourceQuality "1"]
[TimeControl "5400+30"]

1. e4 c5 2. Nf3 d6 3. d4 cxd4 4. Nxd4 Nf6 5. Nc3 a6 6. Be3 e5 7. Nf3 Be7 8. Bc4 Be6 9. Bb3 O-O 10. O-O b5 11. h3 Nc6 12. Bg5 Nd7 13. Bxe7 Qxe7 14. Nd5 Qd8 15. c3 Na5 16. Re1 Nb6 17. Nxb6 Nxb3 18. axb3 Qxb6 19. Ng5 Bd7 20. Nf3 Rad8 21. b4 Bc6 22. Nh4 g6 23. Qg4 Bd7 24. Nf5 Kh8 25. Qh4 d5 26. Ne7 dxe4 27. Rxe4 Qd6 28. Rae1 Kg7 29. Rxe5 Be6 30. Rh5 Rh8 31. Rc5 Qd2 32. Qe4 Qd6 33. Nc6 Rd7 34. Nd4 Bd5 35. Qg4 1-0

[Event "UZB-ch Men Final 2019"]
[Site "Tashkent"]
[Date "2019.07.02"]
[Round "1.2"]
[White "Sindarov, Javokhir"]
[Black "Rakhimov, Rakhmatjon"]
[Result "1-0"]
[ECO "B57"]
[WhiteElo "2479"]
[BlackElo "2107"]
[Annotator "ChessBase"]
[PlyCount "33"]
[EventDate "2019.07.02"]
[EventType "tourn"]
[EventCountry "UZB"]
[SourceTitle "playchess.com"]
[Source "ChessBase"]
[SourceQuality "1"]
[TimeControl "5400+30"]

1. e4 c5 2. Nf3 Nc6 3. d4 cxd4 4. Nxd4 d6 5. Nc3 Nf6 6. Bc4 g6 7. Nxc6 bxc6 8. e5 Ng4 9. exd6 exd6 10. O-O Bg7 11. Re1+ Be5 12. h3 Qh4 13. Ne4 O-O 14. Bg5 Qh5 15. f4 Ne3 16. Rxe3 Bxb2 17. g4 1-0

[Event "UZB-ch Men Final 2019"]
[Site "Tashkent"]
[Date "2019.07.02"]
[Round "1.3"]
[White "Khoroshev, Nikita"]
[Black "Abdisalimov, Abdimalik"]
[Result "0-1"]
[ECO "A01"]
[WhiteElo "2414"]
[BlackElo "2391"]
[Annotator "NA"]
[PlyCount "84"]
[EventDate "2019.07.02"]
[EventType "tourn"]
[EventCountry "UZB"]
[SourceTitle "playchess.com"]
[Source "ChessBase"]
[SourceQuality "1"]
[TimeControl "5400+30"]

1. b3 d5 2. Bb2 Bg4 3. f3 Bf5 4. e4 dxe4 5. Qe2 exf3 6. Qb5+ Bd7 7. Qxb7 Bc6 8. Bb5 Bxb5 9. Qxb5+ c6 10. Qf1 fxg2 11. Qxg2 Qd5 12. Nf3 Qe4+ 13. Kd1 Nf6 14. Nc3 Qg4 15. Qe2 Nbd7 16. Rg1 Qf4 17. Na4 Rd8 18. c4 g6 19. Kc2 Bg7 20. Nd4 Nb8 21. Rae1 O-O 22. Rgf1 Qh4 23. Nf3 Qh5 24. Qxe7 Qf5+ 25. Kc1 Rde8 26. Bxf6 Rxe7 27. Bxe7 Re8 28. Ne5 Qh3 29. Rf3 Qh5 30. Rxf7 Bxe5 31. Ref1 Nd7 32. Ba3 Qh3 33. R7f3 Qg2 34. R1f2 Qg4 35. h3 Qd4 36. Bb2 Qh4 37. Nc3 Bd4 38. Rg2 Re1+ 39. Kc2 Ne5 40. Rfg3 Bf2 41. Rg5 Nf3 42. R5g4 Nd4+ 0-1

[Event "UZB-ch Men Final 2019"]
[Site "Tashkent"]
[Date "2019.07.02"]
[Round "1.4"]
[White "Nigmatov, Ortik"]
[Black "Dzhumaev, Marat"]
[Result "1/2-1/2"]
[ECO "C55"]
[WhiteElo "2488"]
[BlackElo "2439"]
[Annotator "ChessBase"]
[PlyCount "88"]
[EventDate "2019.07.02"]
[EventType "tourn"]
[EventCountry "UZB"]
[SourceTitle "playchess.com"]
[Source "ChessBase"]
[SourceQuality "1"]
[TimeControl "5400+30"]

1. e4 e5 2. Nf3 Nc6 3. Bc4 Nf6 4. d3 Be7 5. O-O O-O 6. Re1 d6 7. a4 a6 8. c3 Na5 9. Ba2 c5 10. h3 Bd7 11. d4 Qc7 12. Bg5 b5 13. Nbd2 cxd4 14. cxd4 bxa4 15. Nf1 Ra7 16. Ne3 Qb8 17. Nd5 Nxd5 18. Bxd5 Bxg5 19. Nxg5 Bc6 20. dxe5 dxe5 21. Rc1 Bxd5 22. exd5 h6 23. Nf3 Nb3 24. Rc4 Re8 25. Qd3 Qb5 26. Rxe5 Raa8 27. Rxe8+ Rxe8 28. d6 Rd8 29. Qe4 Qb8 30. d7 Rxd7 31. g4 Rd8 32. g5 Qd6 33. h4 Nd2 34. Nxd2 Qxd2 35. gxh6 Qxh6 36. Rxa4 Rd6 37. Qe3 Qh5 38. Kh2 Kh7 39. Rf4 Rg6 40. Qf3 Qe5 41. Qe4 Qxe4 42. Rxe4 Kh6 43. Rf4 Rb6 44. Rxf7 Rxb2 1/2-1/2

[Event "UZB-ch Men Final 2019"]
[Site "Tashkent"]
[Date "2019.07.02"]
[Round "1.5"]
[White "Yakubboev, Nodirbek"]
[Black "Sabirov, Asilbek"]
[Result "1-0"]
[ECO "A06"]
[WhiteElo "2575"]
[BlackElo "2147"]
[Annotator "ChessBase"]
[PlyCount "86"]
[EventDate "2019.07.02"]
[EventType "tourn"]
[EventCountry "UZB"]
[SourceTitle "playchess.com"]
[Source "ChessBase"]
[SourceQuality "1"]
[TimeControl "5400+30"]

1. Nf3 d5 2. c4 c6 3. e3 Nf6 4. Nc3 e6 5. b3 Be7 6. Bb2 Nbd7 7. d4 Ne4 8. Bd3 f5 9. O-O O-O 10. Ne2 Rf6 11. Ne5 Rh6 12. cxd5 exd5 13. f3 Nd6 14. Qc2 Qb6 15. Kh1 Qd8 16. Ng3 g6 17. e4 f4 18. Ne2 g5 19. Ng4 Rh4 20. e5 Ne8 21. Bc3 Nf8 22. Be1 Rxg4 23. fxg4 Bxg4 24. g3 f3 25. Ng1 Ng7 26. Nxf3 Nge6 27. Bc3 c5 28. dxc5 Bxc5 29. Qg2 Qe7 30. Rae1 Rd8 31. h3 Bh5 32. Nh2 Bb4 33. Qd2 Bxc3 34. Qxc3 d4 35. Qd2 Bg6 36. Ng4 Kg7 37. Rf6 Rc8 38. Bxg6 Nxg6 39. Ref1 Rc7 40. Qd3 Qc5 41. Qf5 Qd5+ 42. Kg1 Nef4 43. gxf4 Qd8 1-0

[Event "UZB-ch Men Final 2019"]
[Site "Tashkent"]
[Date "2019.07.02"]
[Round "1.6"]
[White "Vokhidov, Shamsiddin"]
[Black "Abdusattorov, Nodirbek"]
[Result "1-0"]
[ECO "B90"]
[WhiteElo "2515"]
[BlackElo "2598"]
[Annotator "ChessBase"]
[PlyCount "53"]
[EventDate "2019.07.02"]
[EventType "tourn"]
[EventCountry "UZB"]
[SourceTitle "playchess.com"]
[Source "ChessBase"]
[SourceQuality "1"]
[TimeControl "5400+30"]

1. e4 c5 2. Nf3 d6 3. d4 Nf6 4. Nc3 cxd4 5. Nxd4 a6 6. h3 e5 7. Nde2 b5 8. Ng3 Bb7 9. Bg5 Nbd7 10. Nh5 Rc8 11. a4 b4 12. Nd5 Qa5 13. Bxf6 Nxf6 14. Ndxf6+ gxf6 15. Bd3 f5 16. O-O f4 17. Qg4 Qd8 18. a5 Rc5 19. Qf5 Bh6 20. Nf6+ Ke7 21. Ng4 Bg7 22. Qg5+ Ke6 23. Qxg7 h5 24. Nh6 Qf8 25. Qxf8 Rxf8 26. Ra4 Bc6 27. Rxb4 1-0

[Event "UZB-ch Men Final 2019"]
[Site "Tashkent"]
[Date "2019.07.03"]
[Round "2.1"]
[White "Sabirov, Asilbek"]
[Black "Vokhidov, Shamsiddin"]
[Result "1-0"]
[ECO "B26"]
[WhiteElo "2147"]
[BlackElo "2515"]
[Annotator "ChessBase"]
[PlyCount "78"]
[EventDate "2019.07.02"]
[EventType "tourn"]
[EventCountry "UZB"]
[SourceTitle "playchess.com"]
[Source "ChessBase"]
[SourceQuality "1"]
[TimeControl "5400+30"]

1. e4 c5 2. Nc3 Nc6 3. g3 g6 4. Bg2 Bg7 5. d3 d6 6. Be3 Nf6 7. h3 O-O 8. Nge2 Rb8 9. Qd2 b5 10. O-O b4 11. Nd1 a5 12. f4 Nd7 13. c4 a4 14. Rb1 e6 15. g4 Nd4 16. g5 Bb7 17. h4 f5 18. Nf2 Qe7 19. Rbe1 b3 20. Bxd4 cxd4 21. axb3 axb3 22. exf5 gxf5 23. Bxb7 Rxb7 24. Ng3 Nc5 25. Qe2 Qe8 26. Qf3 Ra7 27. h5 Qa8 28. Qe2 h6 29. Nh3 Ra2 30. Kh2 Kh8 31. Rg1 Qb7 32. Rd1 e5 33. gxh6 Bxh6 34. fxe5 Be3 35. exd6 f4 36. Nxf4 Rxf4 37. Ne4 Nxe4 38. dxe4 Rf2+ 39. Qxf2 Bxf2 1-0

[Event "UZB-ch Men Final 2019"]
[Site "Tashkent"]
[Date "2019.07.03"]
[Round "2.2"]
[White "Dzhumaev, Marat"]
[Black "Yakubboev, Nodirbek"]
[Result "0-1"]
[ECO "C65"]
[WhiteElo "2439"]
[BlackElo "2575"]
[Annotator "ChessBase"]
[PlyCount "90"]
[EventDate "2019.07.02"]
[EventType "tourn"]
[EventCountry "UZB"]
[SourceTitle "playchess.com"]
[Source "ChessBase"]
[SourceQuality "1"]
[TimeControl "5400+30"]

1. e4 e5 2. Nf3 Nc6 3. Bb5 Nf6 4. Qe2 Bc5 5. c3 O-O 6. d3 d5 7. Bg5 dxe4 8. dxe4 Qe7 9. Bxc6 bxc6 10. Nbd2 a5 11. O-O Ba6 12. c4 a4 13. Rfc1 Rfd8 14. a3 Bc8 15. h3 h6 16. Bh4 g5 17. Bg3 Nd7 18. b4 axb3 19. Nxb3 Rxa3 20. Nxc5 Rxa1 21. Rxa1 Qxc5 22. Nh2 Nf8 23. Qh5 Kg7 24. h4 f6 25. Ra8 Ng6 26. Rxc8 Rxc8 27. Ng4 Rh8 28. Ne3 Ne7 29. Kh2 Qd6 30. Qg4 h5 31. Qe2 g4 32. Qa2 Qd4 33. Qc2 Rd8 34. c5 Qd3 35. Qa4 Kg6 36. Qb4 Qd4 37. Qb1 Qxc5 38. Qb3 Qd4 39. Qe6 Qd6 40. Qb3 Kg7 41. Qa2 c5 42. Qa5 Qc6 43. Nc4 Rd4 44. Nd2 c4 45. Qc3 Qd6 0-1

[Event "UZB-ch Men Final 2019"]
[Site "Tashkent"]
[Date "2019.07.03"]
[Round "2.3"]
[White "Abdisalimov, Abdimalik"]
[Black "Nigmatov, Ortik"]
[Result "1-0"]
[ECO "A18"]
[WhiteElo "2391"]
[BlackElo "2488"]
[Annotator "ChessBase"]
[PlyCount "97"]
[EventDate "2019.07.02"]
[EventType "tourn"]
[EventCountry "UZB"]
[SourceTitle "playchess.com"]
[Source "ChessBase"]
[SourceQuality "1"]
[TimeControl "5400+30"]

1. c4 Nf6 2. Nc3 e6 3. e4 d5 4. cxd5 exd5 5. e5 Ne4 6. d4 Nc6 7. Bb5 Bb4 8. Nge2 O-O 9. O-O f5 10. f3 Nxc3 11. bxc3 Be7 12. c4 Kh8 13. Qa4 a5 14. Rd1 Rb8 15. Rb1 Na7 16. Qxa5 Nxb5 17. cxb5 g5 18. Ba3 b6 19. Bxe7 Qxe7 20. Qb4 Qg7 21. Rbc1 Rf7 22. Ng3 Qg6 23. Rc6 Be6 24. Rf1 f4 25. Nh5 Qxh5 26. Rxe6 g4 27. fxg4 Qxg4 28. Rf6 Qe2 29. Rxf7 Rg8 30. Rxh7+ Kxh7 31. Qe7+ Rg7 32. Qh4+ Kg8 33. Qf2 Qe4 34. Re1 Qf5 35. e6 Qf6 36. Re5 f3 37. e7 Rxe7 38. Qxf3 Qxf3 39. gxf3 Rf7 40. Kf2 Rh7 41. Kg3 Rg7+ 42. Kf4 Rh7 43. Rxd5 Rxh2 44. Rd7 Rxa2 45. Rxc7 Rb2 46. d5 Kf8 47. Ke5 Ke8 48. Ke6 Kd8 49. Rh7 1-0

[Event "UZB-ch Men Final 2019"]
[Site "Tashkent"]
[Date "2019.07.03"]
[Round "2.5"]
[White "Saydaliev, Saidakbar"]
[Black "Sindarov, Javokhir"]
[Result "1/2-1/2"]
[ECO "A39"]
[WhiteElo "2384"]
[BlackElo "2479"]
[Annotator "ChessBase"]
[PlyCount "44"]
[EventDate "2019.07.02"]
[EventType "tourn"]
[EventCountry "UZB"]
[SourceTitle "playchess.com"]
[Source "ChessBase"]
[SourceQuality "1"]
[TimeControl "5400+30"]

1. c4 c5 2. Nf3 Nf6 3. Nc3 g6 4. g3 Bg7 5. Bg2 O-O 6. O-O Nc6 7. d4 cxd4 8. Nxd4 Qa5 9. e3 d6 10. Bxc6 bxc6 11. Nxc6 Qc7 12. Nd5 Nxd5 13. cxd5 Bb7 14. Bd2 Rfc8 15. Qc2 Bxc6 16. Rfc1 Bxb2 17. Qxb2 Qb7 18. Qxb7 Bxb7 19. e4 Rxc1+ 20. Rxc1 Rc8 21. Rxc8+ Bxc8 22. f3 f6 1/2-1/2

[Event "UZB-ch Men Final 2019"]
[Site "Tashkent"]
[Date "2019.07.03"]
[Round "2.6"]
[White "Karimov, Ibragim"]
[Black "Iuldachev, Saidali"]
[Result "1/2-1/2"]
[ECO "A04"]
[WhiteElo "2211"]
[BlackElo "2451"]
[Annotator "ChessBase"]
[PlyCount "34"]
[EventDate "2019.07.02"]
[EventType "tourn"]
[EventCountry "UZB"]
[SourceTitle "playchess.com"]
[Source "ChessBase"]
[SourceQuality "1"]
[TimeControl "5400+30"]

1. Nf3 Nc6 2. d4 d5 3. Bf4 Nf6 4. e3 a6 5. c4 Bf5 6. Nc3 e6 7. c5 Be7 8. Bd3 Bxd3 9. Qxd3 O-O 10. Ne5 Nxe5 11. Bxe5 Nd7 12. Bg3 f5 13. f3 c6 14. O-O e5 15. Bxe5 Nxe5 16. dxe5 Bxc5 17. Kh1 Qe7 1/2-1/2

[Event "UZB-ch Men Final 2019"]
[Site "Tashkent"]
[Date "2019.07.04"]
[Round "3.1"]
[White "Sindarov, Javokhir"]
[Black "Karimov, Ibragim"]
[Result "1-0"]
[ECO "B24"]
[WhiteElo "2479"]
[BlackElo "2211"]
[Annotator "ChessBase"]
[PlyCount "105"]
[EventDate "2019.07.02"]
[EventType "tourn"]
[EventCountry "UZB"]
[SourceTitle "playchess.com"]
[Source "ChessBase"]
[SourceQuality "1"]
[TimeControl "5400+30"]

1. e4 {[%emt 0:00:00]} c5 {[%emt 0:00:00]} 2. Nc3 {[%emt 0:00:00]} Nc6 {[%emt 0:01:14]} 3. Nf3 {[%emt 0:00:01]} d6 {[%emt 0:00:59]} 4. d4 {[%emt 0:00:14]} cxd4 {[%emt 0:04:40]} 5. Nxd4 {[%emt 0:00:07]} g6 {[%emt 0:12:49]} 6. Be3 {[%emt 0:05:47]} Bg7 {[%emt 0:00:59]} 7. Qd2 {[%emt 0:00:08]} Nf6 {[%emt 0:03:08]} 8. f3 {[%emt 0:00:05]} h5 {[%emt 0:04:40]} 9. Bc4 {[%emt 0:11:01]} Bd7 {[%emt 0:04:04]} 10. O-O {[%emt 0:05:06]} O-O {[%emt 0:11:44]} 11. Rfe1 {[%emt 0:08:07]} Nxd4 {[%emt 0:17:41]} 12. Bxd4 {[%emt 0:04:04]} Bc6 {[%emt 0:00:15]} 13. a4 {[%emt 0:15:22]} a5 {[%emt 0:09:41]} 14. Kh1 {[%emt 0:07:36]} Nd7 {[%emt 0:01:14]} 15. Bxg7 {[%emt 0:00:30]} Kxg7 {[%emt 0:00:06]} 16. f4 {[%emt 0:01:46]} Qb6 {[%emt 0:02:26]} 17. b3 {[%emt 0:01:53]} Nf6 {[%emt 0:07:06]} 18. Nd5 {[%emt 0:01:03]} Bxd5 {[%emt 0:04:59]} 19. exd5 {[%emt 0:00:07]} Rac8 {[%emt 0:02:57]} 20. Rxe7 {[%emt 0:02:48]} Rfe8 {[%emt 0:01:20]} 21. Rae1 {[%emt 0:00:10]} Rxe7 {[%emt 0:00:27]} 22. Rxe7 {[%emt 0:00:08]} Re8 {[%emt 0:00:26]} 23. Rxe8 {[%emt 0:03:11]} Nxe8 {[%emt 0:00:02]} 24. h3 {[%emt 0:25:18]} Nf6 {[%emt 0:00:29]} 25. Kh2 {[%emt 0:00:06]} Ne4 {[%emt 0:01:08]} 26. Qe2 {[%emt 0:00:41]} f5 {[%emt 0:02:24]} 27. Bd3 {[%emt 0:00:20]} Qd4 {[%emt 0:00:14]} 28. Bxe4 {[%emt 0:01:01]} fxe4 {[%emt 0:00:06]} 29. Qc4 {[%emt 0:00:19]} Qf2 {[%emt 0:04:02]} 30. Qxe4 {[%emt 0:00:30]} h4 {[%emt 0:00:05]} 31. Qe7+ {[%emt 0:00:37]} Kg8 {[%emt 0:01:34]} 32. Qg5 {[%emt 0:00:54]} Kf7 {[%emt 0:00:13]} 33. Qg4 {[%emt 0:00:22]} b6 {[%emt 0:00:44]} 34. c3 {[%emt 0:00:37]} Kf6 {[%emt 0:00:54]} 35. b4 {[%emt 0:01:19]} Kf7 {[%emt 0:00:14]} 36. bxa5 {[%emt 0:00:54]} bxa5 {[%emt 0:00:04]} 37. c4 {[%emt 0:00:02]} Kf6 {[%emt 0:01:50]} 38. c5 {[%emt 0:05:19]} dxc5 {[%emt 0:00:04]} 39. Qg5+ {[%emt 0:00:10]} Kf7 {[%emt 0:00:06]} 40. d6 {[%emt 0:00:08]} Ke6 {[%emt 0:00:30]} 41. Qe5+ {[%emt 0:00:18]} Kd7 {[%emt 0:00:05]} 42. f5 {[%emt 0:01:00]} Qg3+ {[%emt 0:01:34]} 43. Qxg3 {[%emt 0:00:05]} hxg3+ {[%emt 0:00:02]} 44. Kxg3 {[%emt 0:00:06]} gxf5 {[%emt 0:00:25]} 45. Kf4 {[%emt 0:00:05]} Kxd6 {[%emt 0:00:28]} 46. Kxf5 {[%emt 0:00:09]} Kd5 {[%emt 0:00:41]} 47. g4 {[%emt 0:00:12]} c4 {[%emt 0:00:29]} 48. g5 {[%emt 0:00:03]} c3 {[%emt 0:00:24]} 49. g6 {[%emt 0:00:03]} c2 {[%emt 0:00:13]} 50. g7 {[%emt 0:00:01]} c1=Q {[%emt 0:00:09]} 51. g8=Q+ {[%emt 0:00:04]} Kd4 {[%emt 0:00:05]} 52. Qd8+ {[%emt 0:00:04]} Kc3 {[%emt 0:00:16]} 53. Qc7+ {[%emt 0:00:05]} 1-0

[Event "UZB-ch Men Final 2019"]
[Site "Tashkent"]
[Date "2019.07.04"]
[Round "3.2"]
[White "Khoroshev, Nikita"]
[Black "Saydaliev, Saidakbar"]
[Result "1/2-1/2"]
[ECO "A01"]
[WhiteElo "2414"]
[BlackElo "2384"]
[Annotator "NA"]
[PlyCount "38"]
[EventDate "2019.07.02"]
[EventType "tourn"]
[EventCountry "UZB"]
[SourceTitle "playchess.com"]
[Source "ChessBase"]
[SourceQuality "1"]
[TimeControl "5400+30"]

1. b3 {[%emt 0:03:34]} e5 {[%emt 0:00:00]} 2. Bb2 {[%emt 0:00:04]} Nc6 {[%emt 0:00:00]} 3. e3 {[%emt 0:00:05]} Nf6 {[%emt 0:00:06]} 4. Nf3 {[%emt 0:00:07]} e4 {[%emt 0:00:31]} 5. Nd4 {[%emt 0:00:05]} Nxd4 {[%emt 0:00:20]} 6. Bxd4 {[%emt 0:00:08]} Be7 {[%emt 0:00:09]} 7. c4 {[%emt 0:00:11]} b6 {[%emt 0:01:17]} 8. Nc3 {[%emt 0:04:10]} Bb7 {[%emt 0:00:07]} 9. Qc2 {[%emt 0:00:04]} O-O {[%emt 0:14:34]} 10. Rd1 {[%emt 0:01:03]} Re8 {[%emt 0:00:09]} 11. Be2 {[%emt 0:00:10]} c5 {[%emt 0:08:49]} 12. Be5 {[%emt 0:01:52]} d6 {[%emt 0:06:39]} 13. Bxf6 {[%emt 0:00:30]} Bxf6 {[%emt 0:00:06]} 14. O-O {[%emt 0:00:05]} Bxc3 {[%emt 0:16:00]} 15. Qxc3 {[%emt 0:00:33]} Qg5 {[%emt 0:03:24]} 16. f4 {[%emt 0:00:26]} Qe7 {[%emt 0:01:53]} 17. d4 {[%emt 0:02:13]} exd3 {[%emt 0:00:10]} 18. Rxd3 {[%emt 0:00:04]} Be4 {[%emt 0:02:57]} 19. Rd2 {[%emt 0:00:01]} Rad8 {[%emt 0:01:53]} 1/2-1/2

[Event "UZB-ch Men Final 2019"]
[Site "Tashkent"]
[Date "2019.07.04"]
[Round "3.3"]
[White "Nigmatov, Ortik"]
[Black "Rakhimov, Rakhmatjon"]
[Result "1-0"]
[ECO "B09"]
[WhiteElo "2488"]
[BlackElo "2107"]
[Annotator "ChessBase"]
[PlyCount "93"]
[EventDate "2019.07.02"]
[EventType "tourn"]
[EventCountry "UZB"]
[SourceTitle "playchess.com"]
[Source "ChessBase"]
[SourceQuality "1"]
[TimeControl "5400+30"]

1. e4 {[%emt 0:00:00]} d6 {[%emt 0:00:00]} 2. d4 {[%emt 0:00:00]} Nf6 {[%emt 0:00:20]} 3. Nc3 {[%emt 0:00:00]} g6 {[%emt 0:00:47]} 4. f4 {[%emt 0:00:02]} Bg7 {[%emt 0:00:31]} 5. Bd3 {[%emt 0:00:06]} O-O {[%emt 0:01:50]} 6. Nf3 {[%emt 0:00:07]} c5 {[%emt 0:01:50]} 7. dxc5 {[%emt 0:00:27]} dxc5 {[%emt 0:01:09]} 8. e5 {[%emt 0:00:06]} Nd5 {[%emt 0:00:36]} 9. Nxd5 {[%emt 0:00:06]} Qxd5 {[%emt 0:00:11]} 10. Qe2 {[%emt 0:00:02]} Bf5 {[%emt 0:02:37]} 11. Bxf5 {[%emt 0:01:08]} gxf5 {[%emt 0:00:05]} 12. Be3 {[%emt 0:00:10]} Na6 {[%emt 0:06:42]} 13. O-O {[%emt 0:16:49]} Rfd8 {[%emt 0:04:04]} 14. Rfd1 {[%emt 0:00:24]} Qc6 {[%emt 0:00:59]} 15. c4 {[%emt 0:04:13]} h6 {[%emt 0:11:02]} 16. Qc2 {[%emt 0:12:56]} Nb4 {[%emt 0:14:10]} 17. Qc3 {[%emt 0:16:12]} Qe4 {[%emt 0:03:16]} 18. Nd2 {[%emt 0:01:33]} Qc6 {[%emt 0:00:03]} 19. Nf1 {[%emt 0:05:38]} b6 {[%emt 0:05:57]} 20. a3 {[%emt 0:00:32]} Na6 {[%emt 0:00:52]} 21. Ng3 {[%emt 0:00:11]} e6 {[%emt 0:04:34]} 22. Bf2 {[%emt 0:02:11]} Kh7 {[%emt 0:03:47]} 23. Rd3 {[%emt 0:09:27]} Rd7 {[%emt 0:04:10]} 24. Rad1 {[%emt 0:05:06]} Rad8 {[%emt 0:00:20]} 25. Nh5 {[%emt 0:03:28]} Nc7 {[%emt 0:06:31]} 26. Bh4 {[%emt 0:02:24]} Rxd3 {[%emt 0:00:57]} 27. Rxd3 {[%emt 0:00:05]} Rd7 {[%emt 0:02:13]} 28. Qd2 {[%emt 0:03:59]} Rxd3 {[%emt 0:02:24]} 29. Qxd3 {[%emt 0:00:02]} Ne8 {[%emt 0:03:59]} 30. g4 {[%emt 0:00:33]} Kg6 {[%emt 0:03:04]} 31. Ng3 {[%emt 0:00:37]} Qc8 {[%emt 0:00:37]} 32. Qd1 {[%emt 0:08:58]} f6 {[%emt 0:01:17]} 33. gxf5+ {[%emt 0:01:45]} Kh7 {[%emt 0:00:01]} 34. Qd3 {[%emt 0:01:45]} Kh8 {[%emt 0:00:17]} 35. Nh5 {[%emt 0:01:21]} exf5 {[%emt 0:00:54]} 36. exf6 {[%emt 0:00:15]} Bf8 {[%emt 0:00:18]} 37. Qd5 {[%emt 0:02:26]} Nc7 {[%emt 0:03:12]} 38. Qe5 {[%emt 0:00:41]} Qe8 {[%emt 0:00:50]} 39. Ng3 {[%emt 0:00:49]} Qd7 {[%emt 0:08:29]} 40. Nxf5 {[%emt 0:01:01]} Ne6 {[%emt 0:00:49]} 41. Qd5 {[%emt 0:01:10]} Qf7 {[%emt 0:01:33]} 42. Ne7 {[%emt 0:01:30]} Bxe7 {[%emt 0:02:14]} 43. fxe7 {[%emt 0:00:03]} Qg6+ {[%emt 0:00:40]} 44. Bg3 {[%emt 0:00:38]} Ng7 {[%emt 0:00:19]} 45. f5 {[%emt 0:00:19]} Qf6 {[%emt 0:00:44]} 46. e8=Q+ {[%emt 0:00:09]} Nxe8 {[%emt 0:00:07]} 47. Be5 {[%emt 0:00:01]} 1-0

[Event "UZB-ch Men Final 2019"]
[Site "Tashkent"]
[Date "2019.07.04"]
[Round "3.4"]
[White "Yakubboev, Nodirbek"]
[Black "Abdisalimov, Abdimalik"]
[Result "0-1"]
[ECO "B51"]
[WhiteElo "2575"]
[BlackElo "2391"]
[Annotator "ChessBase"]
[PlyCount "102"]
[EventDate "2019.07.02"]
[EventType "tourn"]
[EventCountry "UZB"]
[SourceTitle "playchess.com"]
[Source "ChessBase"]
[SourceQuality "1"]
[TimeControl "5400+30"]

1. e4 {[%emt 0:00:00]} c5 {[%emt 0:00:00]} 2. Nf3 {[%emt 0:00:00]} d6 {[%emt 0:00:02]} 3. Bb5+ {[%emt 0:00:14]} Nd7 {[%emt 0:00:30]} 4. Ba4 {[%emt 0:00:30]} Ngf6 {[%emt 0:00:08]} 5. O-O {[%emt 0:00:12]} a6 {[%emt 0:00:14]} 6. c4 {[%emt 0:00:12]} e6 {[%emt 0:08:03]} 7. Nc3 {[%emt 0:04:41]} Be7 {[%emt 0:00:09]} 8. d3 {[%emt 0:01:39]} O-O {[%emt 0:00:07]} 9. a3 {[%emt 0:09:53]} b6 {[%emt 0:03:36]} 10. b4 {[%emt 0:01:21]} Bb7 {[%emt 0:00:35]} 11. Bf4 {[%emt 0:16:27]} d5 {[%emt 0:06:33]} 12. cxd5 {[%emt 0:07:22]} exd5 {[%emt 0:09:46]} 13. e5 {[%emt 0:20:38]} Nh5 {[%emt 0:04:03]} 14. Bd2 {[%emt 0:03:30]} b5 {[%emt 0:15:15]} 15. Bc2 {[%emt 0:09:45]} cxb4 {[%emt 0:03:21]} 16. axb4 {[%emt 0:00:29]} Bxb4 {[%emt 0:05:14]} 17. d4 {[%emt 0:00:07]} g6 {[%emt 0:01:55]} 18. Bd3 {[%emt 0:07:38]} Be7 {[%emt 0:00:53]} 19. Bh6 {[%emt 0:01:35]} Re8 {[%emt 0:00:21]} 20. h4 {[%emt 0:00:27]} Qb6 {[%emt 0:10:03]} 21. Qb3 {[%emt 0:04:16]} Qe6 {[%emt 0:01:51]} 22. Ne2 {[%emt 0:02:53]} Qg4 {[%emt 0:02:16]} 23. Be3 {[%emt 0:01:18]} Nb6 {[%emt 0:02:11]} 24. Nh2 {[%emt 0:00:14]} Qe6 {[%emt 0:00:42]} 25. g4 {[%emt 0:01:18]} Ng7 {[%emt 0:00:16]} 26. Bh6 {[%emt 0:00:22]} Nc4 {[%emt 0:01:56]} 27. f4 {[%emt 0:00:56]} f5 {[%emt 0:02:28]} 28. Bxg7 {[%emt 0:01:08]} Kxg7 {[%emt 0:00:01]} 29. gxf5 {[%emt 0:00:27]} gxf5 {[%emt 0:00:00]} 30. Nf3 {[%emt 0:00:22]} h6 {[%emt 0:02:15]} 31. Kf2 {[%emt 0:00:40]} Kh8 {[%emt 0:01:12]} 32. Rh1 {[%emt 0:01:05]} Rg8 {[%emt 0:00:30]} 33. Ng5 {[%emt 0:00:27]} Qg6 {[%emt 0:01:26]} 34. Rag1 {[%emt 0:00:42]} Raf8 {[%emt 0:00:54]} 35. Qc2 {[%emt 0:01:41]} Bc8 {[%emt 0:00:05]} 36. Nf3 {[%emt 0:00:40]} Qf7 {[%emt 0:00:49]} 37. Ng5 {[%emt 0:00:48]} Qg6 {[%emt 0:01:04]} 38. Nf3 {[%emt 0:00:07]} Qb6 {[%emt 0:02:02]} 39. Rxg8+ {[%emt 0:00:55]} Rxg8 {[%emt 0:00:56]} 40. Ng3 {[%emt 0:00:34]} Rg4 {[%emt 0:00:54]} 41. Qc1 {[%emt 0:02:15]} Ba3 {[%emt 0:00:53]} 42. Qc2 {[%emt 0:00:15]} Rxf4 {[%emt 0:01:23]} 43. Ne2 {[%emt 0:00:15]} Rg4 {[%emt 0:00:12]} 44. Bxc4 {[%emt 0:00:27]} dxc4 {[%emt 0:00:53]} 45. h5 {[%emt 0:00:15]} Qc6 {[%emt 0:00:29]} 46. Qd2 {[%emt 0:00:39]} Bb7 {[%emt 0:01:24]} 47. Rh3 {[%emt 0:00:06]} Be7 {[%emt 0:01:41]} 48. Nf4 {[%emt 0:00:43]} Bg5 {[%emt 0:02:02]} 49. Ng6+ {[%emt 0:00:24]} Qxg6 {[%emt 0:01:12]} 50. hxg6 {[%emt 0:00:08]} Bxd2 {[%emt 0:00:02]} 51. Nxd2 {[%emt 0:00:08]} Rxd4 {[%emt 0:00:22]} 0-1